Workbook

Sheet Sheet1
A1: Обрезка | B1: Вес сляба | C1: Вес листа | D1: Крат | H1: 3.191
A2: =ABS((B2-C2*D2)/B2) -> 0.1162644939 | B2: 3.191 | C2: 1.41 | D2: =ROUNDDOWN(B2/C2,0) -> 2 | H2: 4.61
F9: X | G9: Y | H9: X-Y
F10: 5 | G10: 5.000005 | H10: =F10-G10 -> -5e-06

Sheet 1
A1: Сляб 1 | G1: Сляб 2
A2: Толщина | B2: Ширина | C2: Длина | D2: Вес | G2: Толщина | H2: Ширина | I2: Длина | J2: Вес | R2: не больше | U2: не больше
A3: 220 | B3: 1240 | C3: 1500 | D3: =A3*B3*C3*7.8/(10^9) -> 3.19176 | E3: min | G3: 270 | H3: 1240 | I3: 2171 | J3: =G3*H3*I3*7.8/(10^9) -> 5.66943624 | K3: min | M3: Лист | R3: =D4 -> 4.6174128 | U3: =J4 -> 6.920316
A4: 220 | B4: 1240 | C4: 2170 | D4: =A4*B4*C4*7.8/(10^9) -> 4.6174128 | E4: max | G4: 270 | H4: 1240 | I4: 2650 | J4: =G4*H4*I4*7.8/(10^9) -> 6.920316 | K4: max | M4: Толщина x Ширина | N4: Длина | O4: Толщина | P4: Ширина | Q4: Вес листа | R4: Вес сляба 1 | S4: Крат 1 | T4: Обрезка 1 | U4: Вес сляба 2 | V4: Крат 2 | W4: Обрезка 2
M5: 10X1500 | N5: 11650 | O5: =IF(LEN(M5)=7,LEFT(M5,2)+0,LEFT(M5,1)+0) -> 10 | P5: =RIGHT(M5,4)+0 -> 1500 | Q5: =N5*O5*P5*7.8/(10^9) -> 1.36305 | R5: 5 | S5: =ROUNDDOWN(R5/Q5,0) -> 3 | T5: =ABS((R5-Q5*S5)/R5) -> 0.18217 | U5: 7 | V5: 4 | W5: =ABS((U5-Q5*V5)/U5) -> 0.2211142857
M6: 10X1500 | N6: 11900 | O6: =IF(LEN(M6)=7,LEFT(M6,2)+0,LEFT(M6,1)+0) -> 10 | P6: =RIGHT(M6,4)+0 -> 1500 | Q6: =N6*O6*P6*7.8/(10^9) -> 1.3923 | R6: 5 | S6: =ROUNDDOWN(R6/Q6,0) -> 3 | T6: =ABS((R6-Q6*S6)/R6) -> 0.16462 | U6: 7 | V6: =ROUNDDOWN(U6/Q6,0) -> 5 | W6: =ABS((U6-Q6*V6)/U6) -> 0.0055
M7: 10X1500 | N7: 12040 | O7: 10 | P7: 1500 | Q7: 1.40868 | R7: 5 | S7: 3 | T7: =ABS((R7-Q7*S7)/R7) -> 0.154792 | U7: 7 | V7: 4 | W7: 0.19504
M8: 10X1573 | N8: 11800 | O8: 10 | P8: 1573 | Q8: 1.4477892 | R8: 5 | S8: 3 | T8: =ABS((R8-Q8*S8)/R8) -> 0.13132648 | U8: 7 | V8: 4 | W8: 0.1726918857
M9: 10X1582 | N9: 11900 | O9: 10 | P9: 1582 | Q9: 1.4684124 | R9: 5 | S9: 3 | T9: =ABS((R9-Q9*S9)/R9) -> 0.11895256 | U9: 7 | V9: 4 | W9: 0.1609072
M10: 10X1582 | N10: 12000 | O10: 10 | P10: 1582 | Q10: 1.480752 | R10: 5 | S10: 3 | T10: =ABS((R10-Q10*S10)/R10) -> 0.1115488 | U10: 7 | V10: 4 | W10: 0.153856
M11: 10X1582 | N11: 12100 | O11: 10 | P11: 1582 | Q11: 1.4930916 | R11: 5 | S11: 3 | T11: =ABS((R11-Q11*S11)/R11) -> 0.10414504 | U11: 7 | V11: 4 | W11: 0.1468048
M12: 10X1582 | N12: 12200 | O12: 10 | P12: 1582 | Q12: 1.5054312 | R12: 5 | S12: 3 | T12: 0.09674128 | U12: 7 | V12: 4 | W12: 0.1397536
M13: 10X1624 | N13: 11800 | O13: 10 | P13: 1624 | Q13: 1.4947296 | R13: 5 | S13: 3 | T13: 0.10316224 | U13: 7 | V13: 4 | W13: 0.1458688
M14: 10X1624 | N14: 11800 | O14: 10 | P14: 1624 | Q14: 1.4947296 | R14: 5 | S14: 3 | T14: 0.10316224 | U14: 7 | V14: 4 | W14: 0.1458688
M15: 10X1624 | N15: 12000 | O15: 10 | P15: 1624 | Q15: 1.520064 | R15: 5 | S15: 3 | T15: 0.0879616 | U15: 7 | V15: 4 | W15: 0.131392
M16: 10X1624 | N16: 12000 | O16: 10 | P16: 1624 | Q16: 1.520064 | R16: 5 | S16: 3 | T16: 0.0879616 | U16: 7 | V16: 4 | W16: 0.131392
M17: 10X1624 | N17: 12000 | O17: 10 | P17: 1624 | Q17: 1.520064 | R17: 5 | S17: 3 | T17: 0.0879616 | U17: 7 | V17: 4 | W17: 0.131392
M18: 10X1936 | N18: 11700 | O18: 10 | P18: 1936 | Q18: 1.7667936 | R18: 5 | S18: 2 | T18: 0.29328256 | U18: 7 | V18: 3 | W18: 0.2428027429
M19: 10X1936 | N19: 12000 | O19: 10 | P19: 1936 | Q19: 1.812096 | R19: 5 | S19: 2 | T19: 0.2751616 | U19: 7 | V19: 3 | W19: 0.2233874286
M20: 10X1936 | N20: 12000 | O20: 10 | P20: 1936 | Q20: 1.812096 | R20: 5 | S20: 2 | T20: 0.2751616 | U20: 7 | V20: 3 | W20: 0.2233874286
M21: 10X2208 | N21: 12200 | O21: 10 | P21: 2208 | Q21: 2.1011328 | R21: 5 | S21: 2 | T21: 0.15954688 | U21: 7 | V21: 3 | W21: 0.09951451429
M22: 10X2208 | N22: 12200 | O22: 10 | P22: 2208 | Q22: 2.1011328 | R22: 5 | S22: 2 | T22: 0.15954688 | U22: 7 | V22: 3 | W22: 0.09951451429
M23: 10X2208 | N23: 12200 | O23: 10 | P23: 2208 | Q23: 2.1011328 | R23: 5 | S23: 2 | T23: 0.15954688 | U23: 7 | V23: 3 | W23: 0.09951451429
M24: 10X2217 | N24: 11900 | O24: 10 | P24: 2217 | Q24: 2.0578194 | R24: 5 | S24: 2 | T24: 0.17687224 | U24: 7 | V24: 3 | W24: 0.1180774
M25: 10X2217 | N25: 12000 | O25: 10 | P25: 2217 | Q25: 2.075112 | R25: 5 | S25: 2 | T25: 0.1699552 | U25: 7 | V25: 3 | W25: 0.1106662857
M26: 10X2218 | N26: 11900 | O26: 10 | P26: 2218 | Q26: 2.0587476 | R26: 5 | S26: 2 | T26: 0.17650096 | U26: 7 | V26: 3 | W26: 0.1176796
M27: 10X2218 | N27: 12040 | O27: 10 | P27: 2218 | Q27: 2.08296816 | R27: 5 | S27: 2 | T27: 0.166812736 | U27: 7 | V27: 3 | W27: 0.10729936
M28: 10X2525 | N28: 11600 | O28: 10 | P28: 2525 | Q28: 2.28462 | R28: 5 | S28: 2 | T28: 0.086152 | U28: 7 | V28: 3 | W28: 0.02087714286
M29: 10X2525 | N29: 11700 | O29: 10 | P29: 2525 | Q29: 2.304315 | R29: 5 | S29: 2 | T29: 0.078274 | U29: 7 | V29: 3 | W29: 0.01243642857
M30: 10X2525 | N30: 11800 | O30: 10 | P30: 2525 | Q30: 2.32401 | R30: 5 | S30: 2 | T30: 0.070396 | U30: 7 | V30: 3 | W30: 0.003995714286
M31: 10X2525 | N31: 12000 | O31: 10 | P31: 2525 | Q31: 2.3634 | R31: 5 | S31: 2 | T31: 0.05464 | U31: 7 | V31: 2 | W31: 0.3247428571
M32: 10X2529 | N32: 11500 | O32: 10 | P32: 2529 | Q32: 2.268513 | R32: 5 | S32: 2 | T32: 0.0925948 | U32: 7 | V32: 3 | W32: 0.02778014286
M33: 10X2529 | N33: 11600 | O33: 10 | P33: 2529 | Q33: 2.2882392 | R33: 5 | S33: 2 | T33: 0.08470432 | U33: 7 | V33: 3 | W33: 0.01932605714
M34: 10X2529 | N34: 11700 | O34: 10 | P34: 2529 | Q34: 2.3079654 | R34: 5 | S34: 2 | T34: 0.07681384 | U34: 7 | V34: 3 | W34: 0.01087197143
M35: 10X2529 | N35: 11800 | O35: 10 | P35: 2529 | Q35: 2.3276916 | R35: 5 | S35: 2 | T35: 0.06892336 | U35: 7 | V35: 3 | W35: 0.002417885714
M36: 10X2529 | N36: 12000 | O36: 10 | P36: 2529 | Q36: 2.367144 | R36: 5 | S36: 2 | T36: 0.0531424 | U36: 7 | V36: 2 | W36: 0.3236731429
M37: 10X2529 | N37: 12000 | O37: 10 | P37: 2529 | Q37: 2.367144 | R37: 5 | S37: 2 | T37: 0.0531424 | U37: 7 | V37: 2 | W37: 0.3236731429
M38: 11X1621 | N38: 11850 | O38: 11 | P38: 1621 | Q38: 1.64811933 | R38: 5 | S38: 3 | T38: 0.011128402 | U38: 7 | V38: 4 | W38: 0.05821752571
M39: 11X2213 | N39: 12200 | O39: 11 | P39: 2213 | Q39: 2.31647988 | R39: 5 | S39: 2 | T39: 0.073408048 | U39: 7 | V39: 3 | W39: 0.007222908571
M40: 11X2214 | N40: 12000 | O40: 11 | P40: 2214 | Q40: 2.2795344 | R40: 5 | S40: 2 | T40: 0.08818624 | U40: 7 | V40: 3 | W40: 0.02305668571
M41: 11X2215 | N41: 11900 | O41: 11 | P41: 2215 | Q41: 2.2615593 | R41: 5 | S41: 2 | T41: 0.09537628 | U41: 7 | V41: 3 | W41: 0.0307603
M42: 11X2215 | N42: 12040 | O42: 11 | P42: 2215 | Q42: 2.28816588 | R42: 5 | S42: 2 | T42: 0.084733648 | U42: 7 | V42: 3 | W42: 0.01935748
M43: 12X1570 | N43: 11600 | O43: 12 | P43: 1570 | Q43: 1.7046432 | R43: 5 | S43: 2 | T43: 0.31814272 | U43: 7 | V43: 4 | W43: 0.02591817143
M44: 12X1570 | N44: 11650 | O44: 12 | P44: 1570 | Q44: 1.7119908 | R44: 5 | S44: 2 | T44: 0.31520368 | U44: 7 | V44: 4 | W44: 0.02171954286
M45: 12X1570 | N45: 11700 | O45: 12 | P45: 1570 | Q45: 1.7193384 | R45: 5 | S45: 2 | T45: 0.31226464 | U45: 7 | V45: 4 | W45: 0.01752091429
M46: 12X1570 | N46: 11800 | O46: 12 | P46: 1570 | Q46: 1.7340336 | R46: 5 | S46: 2 | T46: 0.30638656 | U46: 7 | V46: 4 | W46: 0.009123657143
M47: 12X1570 | N47: 11800 | O47: 12 | P47: 1570 | Q47: 1.7340336 | R47: 5 | S47: 2 | T47: 0.30638656 | U47: 7 | V47: 4 | W47: 0.009123657143
M48: 12X1570 | N48: 11800 | O48: 12 | P48: 1570 | Q48: 1.7340336 | R48: 5 | S48: 2 | T48: 0.30638656 | U48: 7 | V48: 4 | W48: 0.009123657143
M49: 12X1611 | N49: 12200 | O49: 12 | P49: 1611 | Q49: 1.83963312 | R49: 5 | S49: 2 | T49: 0.264146752 | U49: 7 | V49: 3 | W49: 0.2115858057
M50: 12X1883 | N50: 11800 | O50: 12 | P50: 1883 | Q50: 2.07973584 | R50: 5 | S50: 2 | T50: 0.168105664 | U50: 7 | V50: 3 | W50: 0.10868464
M51: 12X1930 | N51: 11800 | O51: 12 | P51: 1930 | Q51: 2.1316464 | R51: 5 | S51: 2 | T51: 0.14734144 | U51: 7 | V51: 3 | W51: 0.08643725714
M52: 12X1930 | N52: 12000 | O52: 12 | P52: 1930 | Q52: 2.167776 | R52: 5 | S52: 2 | T52: 0.1328896 | U52: 7 | V52: 3 | W52: 0.07095314286
M53: 12X1930 | N53: 12000 | O53: 12 | P53: 1930 | Q53: 2.167776 | R53: 5 | S53: 2 | T53: 0.1328896 | U53: 7 | V53: 3 | W53: 0.07095314286
M54: 12X2202 | N54: 12200 | O54: 12 | P54: 2202 | Q54: 2.51450784 | R54: 5 | S54: 1 | T54: 0.497098432 | U54: 7 | V54: 2 | W54: 0.2815691886
M55: 12X2210 | N55: 12000 | O55: 12 | P55: 2210 | Q55: 2.482272 | R55: 5 | S55: 2 | T55: 0.0070912 | U55: 7 | V55: 2 | W55: 0.2907794286
M56: 12X2210 | N56: 12000 | O56: 12 | P56: 2210 | Q56: 2.482272 | R56: 5 | S56: 2 | T56: 0.0070912 | U56: 7 | V56: 2 | W56: 0.2907794286
M57: 12X2210 | N57: 12000 | O57: 12 | P57: 2210 | Q57: 2.482272 | R57: 5 | S57: 2 | T57: 0.0070912 | U57: 7 | V57: 2 | W57: 0.2907794286
M58: 12X2513 | N58: 12200 | O58: 12 | P58: 2513 | Q58: 2.86964496 | R58: 5 | S58: 1 | T58: 0.426071008 | U58: 7 | V58: 2 | W58: 0.18010144
M59: 12X2522 | N59: 11800 | O59: 12 | P59: 2522 | Q59: 2.78549856 | R59: 5 | S59: 1 | T59: 0.442900288 | U59: 7 | V59: 2 | W59: 0.2041432686
M60: 12X2522 | N60: 11850 | O60: 12 | P60: 2522 | Q60: 2.79730152 | R60: 5 | S60: 1 | T60: 0.440539696 | U60: 7 | V60: 2 | W60: 0.2007709943
M61: 12X2522 | N61: 12000 | O61: 12 | P61: 2522 | Q61: 2.8327104 | R61: 5 | S61: 1 | T61: 0.43345792 | U61: 7 | V61: 2 | W61: 0.1906541714
M62: 12X2522 | N62: 12000 | O62: 12 | P62: 2522 | Q62: 2.8327104 | R62: 5 | S62: 1 | T62: 0.43345792 | U62: 7 | V62: 2 | W62: 0.1906541714
M63: 12X2523 | N63: 10200 | O63: 12 | P63: 2523 | Q63: 2.40875856 | R63: 5 | S63: 2 | T63: 0.036496576 | U63: 7 | V63: 2 | W63: 0.3117832686
M64: 12X2523 | N64: 11500 | O64: 12 | P64: 2523 | Q64: 2.7157572 | R64: 5 | S64: 1 | T64: 0.45684856 | U64: 7 | V64: 2 | W64: 0.2240693714
M65: 12X2523 | N65: 11900 | O65: 12 | P65: 2523 | Q65: 2.81021832 | R65: 5 | S65: 1 | T65: 0.437956336 | U65: 7 | V65: 2 | W65: 0.19708048
M66: 12X2523 | N66: 12040 | O66: 12 | P66: 2523 | Q66: 2.843279712 | R66: 5 | S66: 1 | T66: 0.4313440576 | U66: 7 | V66: 2 | W66: 0.187634368
M67: 13X1611 | N67: 12000 | O67: 13 | P67: 1611 | Q67: 1.9602648 | R67: 5 | S67: 2 | T67: 0.21589408 | U67: 7 | V67: 3 | W67: 0.1598865143
M68: 13X1881 | N68: 11800 | O68: 13 | P68: 1881 | Q68: 2.25065412 | R68: 5 | S68: 2 | T68: 0.099738352 | U68: 7 | V68: 3 | W68: 0.03543394857
M69: 13X1881 | N69: 11800 | O69: 13 | P69: 1881 | Q69: 2.25065412 | R69: 5 | S69: 2 | T69: 0.099738352 | U69: 7 | V69: 3 | W69: 0.03543394857
M70: 13X2202 | N70: 12000 | O70: =IF(LEN(M70)=7,LEFT(M70,2)+0,LEFT(M70,1)+0) -> 13 | P70: =RIGHT(M70,4)+0 -> 2202 | Q70: =N70*O70*P70*7.8/(10^9) -> 2.6793936 | R70: 5 | S70: =ROUNDDOWN(R70/Q70,0) -> 1 | T70: =ABS((R70-Q70*S70)/R70) -> 0.46412128 | U70: 7 | V70: =ROUNDDOWN(U70/Q70,0) -> 2 | W70: =ABS((U70-Q70*V70)/U70) -> 0.2344589714
M71: 13X2202 | N71: 12050 | O71: 13 | P71: 2202 | Q71: 2.69055774 | R71: 5 | S71: 1 | T71: 0.461888452 | U71: 7 | V71: 2 | W71: 0.2312692171
M72: 14,10X1567 | N72: 11800 | O72: 1 | P72: 1567 | Q72: 0.14422668 | R72: 5 | S72: 34 | T72: 0.019258576 | U72: 7 | V72: 48 | W72: 0.01101705143
M73: 14X1567 | N73: 11800 | O73: 14 | P73: 1567 | Q73: 2.01917352 | R73: 5 | S73: 2 | T73: 0.192330592 | U73: 7 | V73: 3 | W73: 0.13463992
M74: 14X1643 | N74: 11650 | O74: 14 | P74: 1643 | Q74: 2.09019174 | R74: 5 | S74: 2 | T74: 0.163923304 | U74: 7 | V74: 3 | W74: 0.10420354
M75: 14X1643 | N75: 11800 | O75: 14 | P75: 1643 | Q75: 2.11710408 | R75: 5 | S75: 2 | T75: 0.153158368 | U75: 7 | V75: 3 | W75: 0.09266968
M76: 14X1643 | N76: 11800 | O76: 14 | P76: 1643 | Q76: 2.11710408 | R76: 5 | S76: 2 | T76: 0.153158368 | U76: 7 | V76: 3 | W76: 0.09266968
M77: 14X1879 | N77: 11800 | O77: 14 | P77: 1879 | Q77: 2.42120424 | R77: 5 | S77: 2 | T77: 0.031518304 | U77: 7 | V77: 2 | W77: 0.30822736
M78: 14X2199 | N78: 12000 | O78: 14 | P78: 2199 | Q78: 2.8815696 | R78: 5 | S78: 1 | T78: 0.42368608 | U78: 7 | V78: 2 | W78: 0.1766944
M79: 14X2510 | N79: 11500 | O79: 14 | P79: 2510 | Q79: 3.152058 | R79: 5 | S79: 1 | T79: 0.3695884 | U79: 7 | V79: 2 | W79: 0.099412
M80: 14X2510 | N80: 11500 | O80: 14 | P80: 2510 | Q80: 3.152058 | R80: 5 | S80: 1 | T80: 0.3695884 | U80: 7 | V80: 2 | W80: 0.099412
M81: 14X2510 | N81: 11800 | O81: 14 | P81: 2510 | Q81: 3.2342856 | R81: 5 | S81: 1 | T81: 0.35314288 | U81: 7 | V81: 2 | W81: 0.0759184
M82: 14X2510 | N82: 11800 | O82: 14 | P82: 2510 | Q82: 3.2342856 | R82: 5 | S82: 1 | T82: 0.35314288 | U82: 7 | V82: 2 | W82: 0.0759184
M83: 14X2510 | N83: 11800 | O83: 14 | P83: 2510 | Q83: 3.2342856 | R83: 5 | S83: 1 | T83: 0.35314288 | U83: 7 | V83: 2 | W83: 0.0759184
M84: 14X2510 | N84: 11800 | O84: 14 | P84: 2510 | Q84: 3.2342856 | R84: 5 | S84: 1 | T84: 0.35314288 | U84: 7 | V84: 2 | W84: 0.0759184
M85: 14X2510 | N85: 11850 | O85: 14 | P85: 2510 | Q85: 3.2479902 | R85: 5 | S85: 1 | T85: 0.35040196 | U85: 7 | V85: 2 | W85: 0.0720028
M86: 14X2510 | N86: 11850 | O86: 14 | P86: 2510 | Q86: 3.2479902 | R86: 5 | S86: 1 | T86: 0.35040196 | U86: 7 | V86: 2 | W86: 0.0720028
M87: 14X2510 | N87: 11900 | O87: 14 | P87: 2510 | Q87: 3.2616948 | R87: 5 | S87: 1 | T87: 0.34766104 | U87: 7 | V87: 2 | W87: 0.0680872
M88: 14X2510 | N88: 11900 | O88: 14 | P88: 2510 | Q88: 3.2616948 | R88: 5 | S88: 1 | T88: 0.34766104 | U88: 7 | V88: 2 | W88: 0.0680872
M89: 14X2510 | N89: 12000 | O89: 14 | P89: 2510 | Q89: 3.289104 | R89: 5 | S89: 1 | T89: 0.3421792 | U89: 7 | V89: 2 | W89: 0.060256
M90: 14X2510 | N90: 12000 | O90: 14 | P90: 2510 | Q90: 3.289104 | R90: 5 | S90: 1 | T90: 0.3421792 | U90: 7 | V90: 2 | W90: 0.060256
M91: 14X2510 | N91: 12000 | O91: 14 | P91: 2510 | Q91: 3.289104 | R91: 5 | S91: 1 | T91: 0.3421792 | U91: 7 | V91: 2 | W91: 0.060256
M92: 14X2510 | N92: 12000 | O92: 14 | P92: 2510 | Q92: 3.289104 | R92: 5 | S92: 1 | T92: 0.3421792 | U92: 7 | V92: 2 | W92: 0.060256
M93: 14X2517 | N93: 10500 | O93: 14 | P93: 2517 | Q93: 2.8859922 | R93: 5 | S93: 1 | T93: 0.42280156 | U93: 7 | V93: 2 | W93: 0.1754308
M94: 14X2517 | N94: 12040 | O94: 14 | P94: 2517 | Q94: 3.309271056 | R94: 5 | S94: 1 | T94: 0.3381457888 | U94: 7 | V94: 2 | W94: 0.054493984
M95: 15X1565 | N95: 11800 | O95: 15 | P95: 1565 | Q95: 2.160639 | R95: 5 | S95: 2 | T95: 0.1357444 | U95: 7 | V95: 3 | W95: 0.07401185714
M96: 15X1605 | N96: 12000 | O96: 15 | P96: 1605 | Q96: 2.25342 | R96: 5 | S96: 2 | T96: 0.098632 | U96: 7 | V96: 3 | W96: 0.03424857143
M97: 16X1599 | N97: 12200 | O97: 16 | P97: 1599 | Q97: 2.43457344 | R97: 5 | S97: 2 | T97: 0.026170624 | U97: 7 | V97: 2 | W97: 0.3044075886
M98: 16X1913 | N98: 12000 | O98: 16 | P98: 1913 | Q98: 2.8649088 | R98: 5 | S98: 1 | T98: 0.42701824 | U98: 7 | V98: 2 | W98: 0.1814546286
M99: 16X2190 | N99: 12200 | O99: 16 | P99: 2190 | Q99: 3.3344064 | R99: 5 | S99: 1 | T99: 0.33311872 | U99: 7 | V99: 2 | W99: 0.04731245714
M100: 16X2511 | N100: 10200 | O100: 16 | P100: 2511 | Q100: 3.19640256 | R100: 5 | S100: 1 | T100: 0.360719488 | U100: 7 | V100: 2 | W100: 0.08674212571
M101: 16X2511 | N101: 11000 | O101: 16 | P101: 2511 | Q101: 3.4471008 | R101: 5 | S101: 1 | T101: 0.31057984 | U101: 7 | V101: 2 | W101: 0.01511405714
M102: 16X2511 | N102: 12040 | O102: 16 | P102: 2511 | Q102: 3.773008512 | R102: 5 | S102: 1 | T102: 0.2453982976 | U102: 7 | V102: 1 | W102: 0.460998784
M103: 17X1875 | N103: 11800 | O103: 17 | P103: 1875 | Q103: 2.933775 | R103: 5 | S103: 1 | T103: 0.413245 | U103: 7 | V103: 2 | W103: 0.1617785714
M104: 17X2187 | N104: 12200 | O104: 17 | P104: 2187 | Q104: 3.53795364 | R104: 5 | S104: 1 | T104: 0.292409272 | U104: 7 | V104: 1 | W104: 0.4945780514
M105: 18X1561 | N105: 11800 | O105: 18 | P105: 1561 | Q105: 2.58613992 | R105: 5 | S105: 1 | T105: 0.482772016 | U105: 7 | V105: 2 | W105: 0.26110288
